Cogmind - Beta 16 @@@ ROGUE MODE // 2025.12.07 @ 04:38:51 Player: souux Result: Destroyed by Y-45 Defender with Heavy Assault Rifle Performance ------------- Evolutions (1) 500 Regions Visited (2) 400 Robots Destroyed (79) 395 Value Destroyed (1520) 1520 Prototype IDs (5) 100 Alien Tech Used (0) 0 Bonus (60) 60 TOTAL SCORE: 2975 Bonus ------- High Alert Combat Kills 60 Cogmind --------- Core Integrity 0/400 Matter 284/500 Energy 142/280 System Corruption 0% Temperature Cool (9) Movement Treading (160) Location -9/Materials Parts ------- > --- POWER (1) -------- Cooled Ion Engine > --- PROPULSION (2) --- Light Treads Light Treads > --- UTILITY (4) ------ Large Storage Unit High-capacity Matter Pod Visual Processing Unit > --- WEAPON (2) ------- Heavy Hammer > --- INVENTORY (15) --- Cooled Ion Engine Light Treads Armored Wheel Armored Wheel Armored Wheel Armored Wheel Armored Wheel Armored Wheel Light Assault Rifle Peak State ------------ > --- POWER ------------ Cooled Ion Engine > --- PROPULSION ------- Armored Wheel Armored Wheel > --- UTILITY ---------- Improved Heat Sink Large Storage Unit Visual Processing Unit Seismic Detector > --- WEAPON ----------- Beam Rifle Beam Rifle > --- INVENTORY -------- Ion Engine Light Treads Light Treads Light Treads Light Treads Armored Wheel Armored Wheel High-capacity Matter Pod Light Armor Plating Light Armor Plating Beam Rifle Beam Rifle Beam Rifle Grenade Launcher Heavy Hammer [Rating: 20] Favorites ----------- Power Ion Engine Engine Ion Engine Propulsion Wheel Treads Light Treads Wheel Wheel Utility Large Storage Unit Device Seismic Detector Storage Large Storage Unit Processor Visual Processing Unit Protection Light Armor Plating Weapon Beam Rifle Energy Gun Beam Rifle Energy Cannon Beam Cannon Ballistic Gun Assault Rifle Launcher Grenade Launcher Impact Weapon Heavy Hammer Build | -11 -10 -9 ------- Run | Yrd Mat Mat Slots Evolved 2 | . . 2 Power . | . . . Propulsion . | . . . Utility 2 | . . 2 Weapon . | . . . Parts Attached 46 | 7 17 22 Power 8 | 1 4 3 Engine 8 | 1 4 3 Core . | . . . Reactor . | . . . Propulsion 14 | 2 3 9 Treads 8 | . 3 5 Leg . | . . . Wheel 6 | 2 . 4 Hover . | . . . Flight . | . . . Utility 11 | 2 4 5 Device 5 | 1 3 1 Storage 3 | 1 1 1 Processor 1 | . . 1 Hackware . | . . . Protection 2 | . . 2 Artifact . | . . . Weapon 13 | 2 6 5 Energy Gun 8 | 1 4 3 Energy Cannon 1 | . 1 . Ballistic Gun 1 | 1 . . Ballistic Cannon . | . . . Launcher 2 | . 1 1 Special Weapon . | . . . Impact Weapon 1 | . . 1 Slashing Weapon . | . . . Piercing Weapon . | . . . Special Melee Weapon . | . . . Unidentified Prototypes 1 | . . 1 Parts Lost 13 | . . 13 Power 1 | . . 1 Propulsion 2 | . . 2 Utility 5 | . . 5 Weapon 5 | . . 5 Highest Loss Streak 8 | . . 8 To Critical Strikes . | . . . Average Backups 11 | 5 10 14 Power 1 | . 1 1 Propulsion 5 | 3 4 6 Utility 2 | . 2 2 Weapon 2 | . 2 3 Tool/Special . | . . . Unused Backups 13 | . 4 9 Power 1 | . . 1 Propulsion 9 | . 2 7 Utility . | . . . Weapon 3 | . 2 1 Tool/Special . | . . . Average Slot Usage (%) 99 | . 100 98 Engine 12 | . 14 10 Treads 3 | . 3 3 Wheel 21 | . 24 17 Device 15 | . 14 17 Storage 13 | . 14 11 Processor 4 | . . 10 Protection 1 | . . 3 Energy Gun 17 | . 15 20 Energy Cannon 6 | . 10 . Peak Build Rating 20 | 7 11 20 Average Rating 12 | 5 9 17 On Entrance 6 | . 7 11 Avg Prop Armor Cover (%) . | . . . Naked Turns . | . . . Heaviest Build 38 | 13 32 38 Greatest Support 40 | 26 40 28 Greatest Overweight (x) 1 | 1 1 1 Average Overweight (x) . | . . 1 Largest Inventory Capacity 15 | 8 15 15 Average Capacity 13 | 7 13 15 Most Carried 15 | 8 15 15 Average Carried 11 | 5 10 14 Final Capacity 15 | 8 15 15 Final Carried 15 | 8 15 9 Class Distribution -------------------- 100% | Mutant Dominant Class ---------------- Mutant | -10/Materials Mutant | -9/Materials Resources | -11 -10 -9 ----------- Run | Yrd Mat Mat Matter Collected 1408 | 294 586 528 Remotely . | . . . Salvage Created 1986 | 110 836 1040 Parts 145 | 9 53 83 Haulers Intercepted 3 | . 1 2 Recyclers Shooed 4 | . 1 3 Parts Field Recycled . | . . . Retrieved Matter . | . . . Parts Self-Destructed . | . . . Prevented . | . . . Parts Restored . | . . . Kills | -11 -10 -9 ------- Run | Yrd Mat Mat Combat Hostiles Destroyed 50 | . 19 31 Guns 21 | . 6 15 Cannons 8 | . 8 . AOE 20 | . 5 15 Classes Destroyed 11 | 2 5 4 Worker 3 | . . 3 Builder 5 | . . 5 Tunneler 6 | 2 2 2 Hauler 3 | . 1 2 Recycler 4 | 1 2 1 Operator 3 | . 2 1 Watcher 5 | . 3 2 Swarmer 22 | . 8 14 Grunt 23 | . 11 12 Duelist 1 | . . 1 Sentry 4 | . . 4 Best Kill Streak 15 | 2 5 15 Combat Bots Only 8 | . 4 8 Max Kills in Single Turn 3 | 1 3 3 Gunslinging 1 | . . 1 Exploded 2 | . 2 2 Melee . | . . . Uniques/NPCs Destroyed . | . . . Combat | -11 -10 -9 -------- Run | Yrd Mat Mat Hostile Shots Fired 283 | . 73 210 Missed 89 | . 27 62 Hits 194 | . 46 148 Melee 1 | . . 1 Projectile 193 | . 46 147 Critical Strikes 4 | . 1 3 Damage Taken 2471 | . 511 1960 Core 500 | . 84 416 Absorbed by Shields . | . . . Core Remaining (%) 83 | 100 66 . Volleys Fired 149 | 8 54 87 Largest 2 | 2 2 2 Hottest 116 | 60 116 112 Shots Fired 259 | 16 101 142 Gun 186 | 16 55 115 Cannon 38 | . 38 . Launcher 35 | . 8 27 Special . | . . . Kinetic 13 | 8 5 . Thermal 198 | . 83 115 Explosive 35 | . 8 27 Electromagnetic 13 | 8 5 . Robot Hit Streak 17 | 9 12 17 Robot Miss Streak 2 | 1 2 2 Penetration Max . | . . . Secondary Targets 4 | . . 4 Max Gunslinging Chain 1 | . . 1 Shots Hit Robots 169 | 12 62 95 Core Hits 105 | 4 36 65 Critical Kills . | . . . Critical Parts Destroyed . | . . . Critical Strikes 12 | . 1 11 Burn 12 | . 1 11 Melee Attacks 3 | . . 3 Impact 3 | . . 3 Slashing . | . . . Piercing . | . . . Sneak Attacks . | . . . Combat Hostiles . | . . . Follow-up Attacks . | . . . Damage Inflicted 5037 | 158 1623 3256 Guns 2096 | 158 602 1336 Cannons 349 | . 349 . Explosions 2510 | . 672 1838 Melee 82 | . . 82 Ramming . | . . . Kinetic 112 | 61 51 . Thermal 2462 | . 1126 1336 Explosive 2233 | . 395 1838 Electromagnetic 148 | 97 51 . Impact 82 | . . 82 Slashing . | . . . Piercing . | . . . Highest Corruption . | . . . Average Corruption . | . . . Corruption Purged . | . . . Corruption Blocked . | . . . Overload Shots . | . . . Overflow Damage 184 | . 42 142 Projectiles . | . . . Explosions 174 | . 42 132 Melee 10 | . . 10 Knockbacks . | . . . Impact . | . . . Kinetic . | . . . Secondary . | . . . Self-Inflicted Damage 177 | . 19 158 Shots 6 | . 1 5 Rammed . | . . . Targets Rammed . | . . . Kicked . | . . . Crushed . | . . . Highest Temperature 214 | . 214 108 Average Temperature 49 | . 71 19 Received Heat Transfer 849 | . 228 621 Siege Activations . | . . . Martial Activations . | . . . Shielding Activations . | . . . Robots Disrupted . | . . . Combat Hostiles . | . . . Robots Corrupted . | . . . Combat Hostiles . | . . . Parts Fried . | . . . Impact Corruptions 1 | . . 1 Robots Melted 2 | . . 2 Combat Hostiles 1 | . . 1 Parts Melted 19 | . 6 13 Heat Transferred 6540 | . 2322 4218 Parts Sabotaged . | . . . Parts Stolen . | . . . Parts Stripped . | . . . Power Chain Reactions 1 | . 1 . Alert | -11 -10 -9 ------- Run | Yrd Mat Mat Maximum Alert Level 2 | . 1 2 Low Security (%) 71 | 100 78 57 Level 1 24 | . 21 32 Level 2 3 | . . 9 Level 3 . | . . . Level 4 . | . . . Level 5 . | . . . High Security . | . . . Max Security . | . . . Peak Influence 604 | 10 238 604 Initial 86 | . . 86 Average 141 | 1 119 187 Influence Increases 1738 | 15 684 1039 Destroy 0b10 Robot/C 1000 | . 380 620 Destroy 0b10 Robot/NC 145 | 15 50 80 Destroy Leader 226 | . 88 138 Successful Hack 25 | . 20 5 Disable Machine 75 | . 45 30 Destroy Structure 162 | . 56 106 Partial Spotted 30 | . . 30 Lose Combat Pursuer 75 | . 45 30 Influence Decreases 1150 | 15 478 657 Entered New Map 120 | . . 120 Time Decay 900 | 15 478 407 Lost Part 130 | . . 130 Squads Dispatched 8 | . 4 4 Investigation 3 | . 2 1 Extermination . | . . . Reinforcement 5 | . 2 3 Assault . | . . . Garrison . | . . . Intercept . | . . . Searches Triggered . | . . . Construction Impeded 2 | . . 2 Haulers Reinforced . | . . . Active Scanning Responses . | . . . Cargo Convoy Interrupts . | . . . Stealth | -11 -10 -9 --------- Run | Yrd Mat Mat Distress Signals 2 | . . 2 Communications Jammed . | . . . Distress Signals . | . . . Times Spotted 74 | . 30 44 Peak Tracking Total 7 | . 6 7 Tactical Retreats 3 | . 2 1 Traps | -11 -10 -9 ------- Run | Yrd Mat Mat Traps Triggered 2 | . 1 1 Indirectly . | . . . Trap Hack Attempts . | . . . Triggered . | . . . Disarmed . | . . . Reprogrammed . | . . . Reused . | . . . Traps Extracted . | . . . Installed . | . . . Triggered . | . . . Machines | -11 -10 -9 ---------- Run | Yrd Mat Mat Machines Disabled 6 | . 3 3 Max in Single Turn 2 | . 2 1 Machines Repaired . | . . . Machines Dismantled . | . . . Machines Sabotaged . | . . . Overloaded Fab Kills . | . . . Hacking | -11 -10 -9 --------- Run | Yrd Mat Mat Machines Accessed 9 | . 6 3 Terminals 8 | . 6 2 Fabricators . | . . . Repair Stations . | . . . Recycling Units . | . . . Scanalyzers 1 | . . 1 Garrison Access . | . . . Total Hacks 34 | . 23 11 Successful 21 | . 13 8 Failed 13 | . 10 3 Catastrophic . | . . . Database Lockouts . | . . . Manual 23 | . 17 6 Terminals 30 | . 23 7 Fabricators . | . . . Repair Stations . | . . . Recycling Units . | . . . Scanalyzers 4 | . . 4 Garrison Access . | . . . Terminal Hacks 6 | . 6 . Prototype ID Bank 3 | . 3 . Locate Traps 2 | . 2 . Hauler Manifests 1 | . 1 . Fabricator Hacks . | . . . Repair Station Hacks . | . . . Recycling Unit Hacks . | . . . Scanalyzer 4 | . . 4 Retrieve Study 4 | . . 4 Garrison Access Hacks . | . . . Unauthorized Hacks 11 | . 7 4 Terminals 11 | . 7 4 Botnet 5 | . 3 2 Skim 6 | . 4 2 Fabricators . | . . . Repair Stations . | . . . Recycling Units . | . . . Scanalyzers . | . . . Garrison Access . | . . . Data Cores Recovered . | . . . Used . | . . . Hacking Detections 9 | . 6 3 Full Trace Events 1 | . 1 . Feedback Events . | . . . Feedback Blocked . | . . . Robot Schematics Acquired . | . . . Robots Built . | . . . Authchips . | . . . Time . | . . . Total Robot Build Rating . | . . . Part Schematics Acquired . | . . . Parts Built . | . . . Authchips . | . . . Time . | . . . Total Part Build Rating . | . . . Part Studies Acquired 4 | . . 4 Parts Repaired . | . . . Time . | . . . Parts Recycled . | . . . Recycled Matter . | . . . Retrieved Matter . | . . . Retrieved Components . | . . . Parts Scanalyzed . | . . . Part Schematics Acquired . | . . . Parts Damaged . | . . . Bothacking | -11 -10 -9 ------------ Run | Yrd Mat Mat Used RIF Installer . | . . . Robots Hacked . | . . . Non-combat . | . . . Combat . | . . . Robot Hacks Applied . | . . . Relay Couplers Released . | . . . Fabnet Peak Effective % . | . . . Robots Rewired . | . . . Allies Hacked . | . . . Hacks Repelled . | . . . Allies | -11 -10 -9 -------- Run | Yrd Mat Mat Total Allies . | . . . Largest Group . | . . . Highest-Rated Group . | . . . Highest-Rated Ally . | . . . Total Orders . | . . . Ally Attacks . | . . . Total Damage . | . . . Kills . | . . . Allies Corrupted . | . . . Allies Melted . | . . . Intel | -11 -10 -9 ------- Run | Yrd Mat Mat Active Infowar (turns) 2301 | 42 1272 987 Optics 986 | . . 986 Seismic 1924 | 42 1272 610 Robot Analysis Total . | . . . Derelict Logs Recovered . | . . . Drone Launches . | . . . Drone Recoveries . | . . . Exploration | -11 -10 -9 ------------- Run | Yrd Mat Mat Turns Passed 2511 | 109 1415 987 Spaces Moved 1105 | 66 685 354 Core 1 | 1 . . Treads 5 | . 5 . Legs . | . . . Wheels 1099 | 65 680 354 Hover . | . . . Flight . | . . . Fastest Speed 50 | 50 90 95 Average Speed 100 | 88 100 102 Slowest Speed 160 | 95 160 110 Overloaded Moves . | . . . Propulsion Burnouts . | . . . Robots Hopped . | . . . Potential Cave-ins . | . . . Cave-ins Triggered . | . . . Exploration Rate (%) 42 | 4 90 32 Regions Visited 2 Branch Regions . Pre-discovered Areas . | . . . Known Exits Taken . | . . . Unknown Exits Taken 2 | 1 1 . Scrap Searched . | . . . Spaces Dug 65 | . 8 57 Terrain Destroyed 172 | . 62 110 Melee . | . . . Projectile . | . . . AOE 172 | . 62 110 Terrain Rammed . | . . . Walls Destroyed . | . . . Machines Disabled . | . . . Actions | -11 -10 -9 --------- Run | Yrd Mat Mat Total 2227 | 97 1296 834 Wait 805 | 9 482 314 Move 1103 | 65 684 354 Hop . | . . . Pick Up 43 | 8 16 19 Fast Attach 12 | 7 4 1 Attach 14 | . . 14 Detach 1 | . . 1 Swap 64 | . 38 26 Drop 33 | . 18 15 Fire 149 | 8 54 87 Melee 3 | . . 3 Ram . | . . . Kick . | . . . Crush . | . . . Escape Stasis . | . . . Rewire . | . . . Trap . | . . . Miscellaneous . | . . . Route ------- -11/Scrapyard -10/Materials (discovered 3 exits: *Mat x2 / [*Min]) -9/Materials (discovered 1 exit: [*Min]) History --------- Turn | Location | Event 13 | -11/Scrapyard | Discovered new exit (range 15) 110 | -11/Scrapyard | Entered Materials 315 | -10/Materials | Build established: Mutant 365 | -10/Materials | Discovered new exit (range 8) 613 | -10/Materials | Discovered new exit (range 7) 1488 | -10/Materials | Discovered new exit (range 12) 1525 | -10/Materials | Entered another Materials area 1525 | -9/Materials | Evolved 2 slots: Utility x2 2124 | -9/Materials | Lost 3 parts (1u2w) 2138 | -9/Materials | Destroyed 8 combat bots 2464 | -9/Materials | Core integrity fell below 50% 2493 | -9/Materials | Discovered new exit (range 13) 2497 | -9/Materials | Destroyed 8 combat bots 2499 | -9/Materials | Core integrity fell below 20% 2512 | -9/Materials | Destroyed by Y-45 Defender with Heavy Assault Rifle Last Messages --------------- 02502_ U-05 Engineer builds a Wall. 02503_ M-13 Machinist fits Backup Propulsion I on G-34 Mercenary. 02503_ Grenade Launcher+ destroyed. 02503_ K-01 Serf collects debris. 02505_ M-13 Machinist fits Backup Plating I on G-34 Mercenary. 02506_ The unstable cave ceiling collapses. 02506_ K-01 Serf crushed by falling debris. 02506_ K-01 Serf destroyed. 02506_ U-05 Engineer builds a Wall. 02507_ M-13 Machinist repairs G-34 Mercenary Aluminum Leg. 02509_ M-13 Machinist repairs G-34 Mercenary Sml. Laser. 02509_ Destroyed Heat Sink. 02509_ Y-45 Defender system corrupted by crushing effect. 02510_ U-05 Engineer builds a Wall. 02512_ K-01 Serf collects debris. Map ----- +----------------------------------------------------+ | ?????????????????????????????????????????????????? | | ?????????????????????????????????????????????????? | | ?????????????????????????????????????????????????? | | ?????????????????????????????????????????????????? | | ?????????????????????????????????????????????????? | | ?????????????????????????????????????????????????? | | ?????????????????????????????????????????????????? | | ?????????????????????????????????????????????????? | | ?????????????????????????????????????????????????? | | ?????????????????????????????????????????????????? | | ?????????????????????????????????????????????????? | | ?????????????????????????????????????????????????? | | ?????????????????????????????????????????????????? | | ?????????????????????????????????????????????????? | | ???###########???????????????????????????????????? | | ???? #???????????????????????????????????? | | ???# """ #???????????????????????????????????? | | ???#""""" #??########?????????????????????????? | | ???#""""" #??# ^ #????????????##??"????????? | | ???#""""" #??# T #?????????## # ?????????? | | ???# """ #??# ^ ##??????? #??????????? | | ???# #??# ^ #??#### #??????????? | | ???# #??# ! = #### # #????????? | | ???#######+###??# ! = T g ??????? | | ######## #######+# # ##??????????? | | # =*@ = m w# #??????????? | | # =%Y[* #??????????? | | # %[! """ # ??????? | | # ## ###### ###%[* """"" #?????????????? | | # ##%#####????#+### % = """???????????????? | | + ## #?????????? # !#![ ??????????????? | | ### *## #????????? # g# # ##??????????????? | | # ## #???????"" + u# ?""??????????????? | | # ## #?????? """ # # | !?"??????????????? | | " # ## #?????# """ # #? ! ?#?????????????? | | " # ## #?????# # ?k% ??????????????? | | " + ## #??????####### ? * < ?????????????? | | " # ## #???????????? ? ????????????? | | " ## ### #???????????? ##? ###???????????? | | ## ### #???????????? #??######??????????????? | | ####=### #########???? +??????????????????????? | | ####+## # #??? #??????????????????????? | | [= % # [# ##?? #??????????????????????? | | == # # #???# ???????????????????????? | | ]=* + + "T" #????? ???????????????????????? | | ]=* # # """ #???????????????????????????????? | | % # # #???????????????????????????????? | | #+##### ############# ?????????????????????????? | | * ?????????????????????????? | | * * !?????????????????????????? | +----------------------------------------------------+ Best States ------------- Heat Dissipation 42 Energy Generation 14 Energy Capacity 280 Matter Stores 450 Matter Capacity 500 Sight Range 18 Terrain Scan Density 10 Armor Coverage 150 Evasion (%) 44 Recoil Reduction 2 Item Schematics ----------------- None Robot Schematics ------------------ None Fabricated ------------ Nothing Repaired ---------- Nothing Studied --------- Arm. Wheel | -9/Materials | Hacked Lgt. Treads | -9/Materials | Hacked Beam Rifle | -9/Materials | Hacked Grenade Launcher | -9/Materials | Hacked Alien Tech Used ----------------- None Achievements -------------- None Challenges ------------ None Game ------ Seed AlphaFieldMinigun Manual? 0 Play Time 00:32:35 Cumulative 108.0 hours Start 2025.12.07 @ 04:07:52 End 2025.12.07 @ 04:38:51 Sessions 1 Manual Loads 0 Difficulty Rogue Special Mode None Game No. 93 Rogue 93 Adventurer 0 Explorer 0 Win Type - Total 1 Types 1/0/0/0/0/0/0/0/0/0 Lore% 40 Gallery% 43 Achievement% 36 Wizard Run 0 Options --------- Layout 2 ASCII 0 Keyboard 0 Movement Mouse Keybinds 0 Fullscreen 2 Font 24/Terminus Map View 50x44 Zoom Use 0% Tactical HUD 1 Map Filters NONE Filters NONE Steam 1 RUN: c6aa2283-f344-4d6a-905a-0e75a5019e18